Cogmind - Beta 9.3 @@@ ROGUE MODE // 2019.12.23 @ 20:35:50 // Winter2019/RPGLIKE Player: Exeight Result: Destroyed by 8R-AWN with 8R-AWN's Boregun Performance ------------- Evolutions (0) 0 Regions Visited (2) 400 Robots Destroyed (1) 5 Value Destroyed (63) 63 Prototype IDs (0) 0 Alien Tech Used (0) 0 Bonus (-43) -43 TOTAL SCORE: 425 Bonus ------- Follower Combat Kills 7 Friendly Fire -50 Cogmind --------- Core Integrity 0/600 Matter 237/300 Energy 125/125 System Corruption 0% Temperature Cool (0) Movement Walking (120) Location -10/Mines Parts ------- > --- POWER (1) -------- Light Ion Engine > --- PROPULSION (1) --- Aluminum Leg > --- UTILITY (2) ------ Heat Sink > --- WEAPON (1) ------- Assault Rifle > --- INVENTORY (0) ---- (None) Peak State ------------ > --- POWER ------------ Light Ion Engine > --- PROPULSION ------- Aluminum Leg > --- UTILITY ---------- Heat Sink > --- WEAPON ----------- Assault Rifle > --- INVENTORY -------- (None) [Rating: 4] Favorites ----------- Power Light Ion Engine Engine Light Ion Engine Propulsion Aluminum Leg Leg Aluminum Leg Utility Heat Sink Device Heat Sink Weapon Assault Rifle Ballistic Gun Assault Rifle Build | -11 -10 -10 ------- Run | Scr Mat Min Slots Evolved 1 | 1 . . Power . | . . . Propulsion . | . . . Utility 1 | 1 . . Weapon . | . . . Parts Attached 4 | 3 1 . Power 1 | 1 . . Engine 1 | 1 . . Core . | . . . Reactor . | . . . Propulsion 1 | 1 . . Treads . | . . . Leg 1 | 1 . . Wheel . | . . . Hover . | . . . Flight . | . . . Utility 1 | . 1 . Device 1 | . 1 . Storage . | . . . Processor . | . . . Hackware . | . . . Protection . | . . . Artifact . | . . . Weapon 1 | 1 . . Energy Gun . | . . . Energy Cannon . | . . . Ballistic Gun 1 | 1 . . Ballistic Cannon . | . . . Launcher . | . . . Special Weapon . | . . . Impact Weapon . | . . . Slashing Weapon . | . . . Piercing Weapon . | . . . Special Melee Weapon . | . . . Unidentified Prototypes . | . . . Parts Lost . | . . . Power . | . . . Propulsion . | . . . Utility . | . . . Weapon . | . . . Highest Loss Streak . | . . . Average Slot Usage (%) 77 | . 75 80 Engine 20 | . 20 20 Leg 20 | . 20 20 Device 17 | . 15 20 Ballistic Gun 20 | . 20 20 Naked Turns . | . . . Heaviest Build 6 | 5 6 6 Greatest Support 10 | 10 10 10 Greatest Overweight (x) . | . . . Average Overweight (x) . | . . . Largest Inventory Capacity . | . . . Average Capacity . | . . . Most Carried . | . . . Average Carried . | . . . Final Capacity . | . . . Final Carried . | . . . Class Distribution -------------------- 100% | Mutant Dominant Class ---------------- Mutant | -10/Materials Mutant | -10/Mines Resources | -11 -10 -10 ----------- Run | Scr Mat Min Matter Collected 240 | 230 10 . Remotely . | . . . Salvage Created . | . . . Parts 1 | . . 1 Haulers Intercepted . | . . . Recyclers Shooed . | . . . Parts Field Recycled . | . . . Retrieved Matter . | . . . Parts Self-Destructed . | . . . Prevented . | . . . Kills | -11 -10 -10 ------- Run | Scr Mat Min Combat Hostiles Destroyed 1 | . . 1 Guns 1 | . . 1 Classes Destroyed 1 | . . 1 Demolisher 1 | . . 1 Best Kill Streak 1 | . . 1 Combat Bots Only 1 | . . 1 Max Kills in Single Turn 1 | . . 1 Gunslinging . | . . . Exploded . | . . . Melee . | . . . Uniques/NPCs Destroyed . | . . . Combat | -11 -10 -10 -------- Run | Scr Mat Min Damage Taken 737 | . . 737 Core 604 | . . 604 Absorbed by Shields . | . . . Redirected to Core 448 | . . 448 Core Remaining (%) 100 | 100 . . Volleys Fired 21 | . . 21 Largest 1 | . . 1 Hottest 20 | . . 20 Shots Fired 21 | . . 21 Gun 21 | . . 21 Cannon . | . . . Launcher . | . . . Special . | . . . Kinetic 21 | . . 21 Thermal . | . . . Explosive . | . . . Electromagnetic . | . . . Robot Hit Streak 6 | . . 6 Robot Miss Streak 2 | . . 2 Penetration Max . | . . . Secondary Targets . | . . . Shots Hit Robots 15 | . . 15 Core Hits 8 | . . 8 Critical Hits 1 | . . 1 Critical Kills . | . . . Critical Parts Destroyed 1 | . . 1 Melee Attacks . | . . . Impact . | . . . Slashing . | . . . Piercing . | . . . Sneak Attacks . | . . . Combat Hostiles . | . . . Follow-up Attacks . | . . . Damage Inflicted 239 | . . 239 Guns 239 | . . 239 Cannons . | . . . Explosions . | . . . Melee . | . . . Ramming . | . . . Kinetic 239 | . . 239 Thermal . | . . . Explosive . | . . . Electromagnetic . | . . . Impact . | . . . Slashing . | . . . Piercing . | . . . Highest Corruption . | . . . Average Corruption . | . . . Corruption Purged . | . . . Overload Shots . | . . . Overflow Damage . | . . . Projectiles . | . . . Explosions . | . . . Melee . | . . . Knockbacks . | . . . Impact . | . . . Kinetic . | . . . Secondary . | . . . Self-Inflicted Damage . | . . . Shots . | . . . Rammed . | . . . Targets Rammed . | . . . Kicked . | . . . Crushed . | . . . Highest Temperature . | . . . Average Temperature . | . . . Received Heat Transfer . | . . . Siege Activations . | . . . Robots Corrupted . | . . . Combat Hostiles . | . . . Parts Fried . | . . . Impact Corruptions . | . . . Robots Melted . | . . . Combat Hostiles . | . . . Parts Melted . | . . . Heat Transferred . | . . . Parts Sabotaged . | . . . Parts Stolen . | . . . Parts Stripped . | . . . Power Chain Reactions . | . . . Missiles Intercepted . | . . . Alert | -11 -10 -10 ------- Run | Scr Mat Min Peak Influence 122 | . 30 122 Average Influence 42 | . 10 95 Maximum Alert Level . | . . . Low Security (%) 100 | 100 100 100 Level 1 . | . . . Level 2 . | . . . Level 3 . | . . . Level 4 . | . . . Level 5 . | . . . High Security . | . . . Max Security . | . . . Squads Dispatched 2 | . 2 . Investigation 1 | . 1 . Extermination . | . . . Reinforcement 1 | . 1 . Assault . | . . . Garrison . | . . . Intercept . | . . . Construction Impeded . | . . . Haulers Reinforced . | . . . Stealth | -11 -10 -10 --------- Run | Scr Mat Min Distress Signals . | . . . Communications Jammed . | . . . Distress Signals . | . . . Times Spotted 9 | . 2 7 Peak Tracking Total 12 | . 1 12 Tactical Retreats . | . . . Traps | -11 -10 -10 ------- Run | Scr Mat Min Traps Triggered 1 | . 1 . Indirectly . | . . . Trap Hack Attempts . | . . . Triggered . | . . . Disarmed . | . . . Reprogrammed . | . . . Reused . | . . . Traps Extracted . | . . . Installed . | . . . Triggered . | . . . Machines | -11 -10 -10 ---------- Run | Scr Mat Min Machines Disabled 1 | . . 1 Max in Single Turn . | . . . Machines Sabotaged . | . . . Garrisons Compromised . | . . . Overloaded Fab Kills . | . . . Fab Network Shutdowns . | . . . Hacking | -11 -10 -10 --------- Run | Scr Mat Min Machines Accessed . | . . . Terminals . | . . . Fabricators . | . . . Repair Stations . | . . . Recycling Units . | . . . Scanalyzers . | . . . Garrison Access . | . . . Total Hacks . | . . . Successful . | . . . Failed . | . . . Catastrophic . | . . . Database Lockouts . | . . . Manual . | . . . Terminals . | . . . Fabricators . | . . . Repair Stations . | . . . Recycling Units . | . . . Scanalyzers . | . . . Garrison Access . | . . . Terminal Hacks . | . . . Fabricator Hacks . | . . . Repair Station Hacks . | . . . Recycling Unit Hacks . | . . . Scanalyzer . | . . . Garrison Access Hacks . | . . . Unauthorized Hacks . | . . . Terminals . | . . . Fabricators . | . . . Repair Stations . | . . . Recycling Units . | . . . Scanalyzers . | . . . Garrison Access . | . . . Data Cores Recovered . | . . . Used . | . . . Hacking Detections . | . . . Full Trace Events . | . . . Feedback Events . | . . . Feedback Blocked . | . . . Robot Schematics Acquired . | . . . Robots Built . | . . . Matter . | . . . Time . | . . . Total Robot Build Rating . | . . . Part Schematics Acquired . | . . . Parts Built . | . . . Matter . | . . . Time . | . . . Total Part Build Rating . | . . . Parts Repaired . | . . . Time . | . . . Parts Recycled . | . . . Recycled Matter . | . . . Retrieved Matter . | . . . Retrieved Components . | . . . Parts Scanalyzed . | . . . Part Schematics Acquired . | . . . Parts Damaged . | . . . Bothacking | -11 -10 -10 ------------ Run | Scr Mat Min Used RIF Installer . | . . . Robots Hacked . | . . . Non-combat . | . . . Combat . | . . . Robot Hacks Applied . | . . . Relay Couplers Released . | . . . Robots Rewired . | . . . Allies Hacked . | . . . Hacks Repelled . | . . . Allies | -11 -10 -10 -------- Run | Scr Mat Min Total Allies 2 | . . 2 Largest Group 2 | . . 2 Highest-Rated Group 39 | . . 39 Highest-Rated Ally 31 | . . 31 Total Orders . | . . . Ally Attacks 40 | . . 40 Total Damage 249 | . . 249 Kills 3 | . . 3 Allies Corrupted . | . . . Allies Melted . | . . . Intel | -11 -10 -10 ------- Run | Scr Mat Min Robot Analysis Total . | . . . Derelict Logs Recovered . | . . . Drone Launches . | . . . Drone Recoveries . | . . . Exploration | -11 -10 -10 ------------- Run | Scr Mat Min Turns Passed 293 | 44 132 117 Spaces Moved 182 | 36 109 37 Core 4 | 4 . . Treads . | . . . Legs 178 | 32 109 37 Wheels . | . . . Hover . | . . . Flight . | . . . Fastest Speed 50 | 50 120 120 Average Speed 118 | 112 120 120 Slowest Speed 120 | 120 120 120 Overloaded Moves . | . . . Propulsion Burnouts . | . . . Robots Hopped . | . . . Cave-ins Triggered . | . . . Exploration Rate (%) 13 | 3 20 17 Regions Visited 2 Branch Regions 1 Pre-discovered Areas . | . . . Known Exits Taken . | . . . Unknown Exits Taken 2 | 1 1 . Scrap Searched 1 | . . 1 Spaces Dug . | . . . Terrain Destroyed . | . . . Melee . | . . . Projectile . | . . . AOE . | . . . Actions | -11 -10 -10 --------- Run | Scr Mat Min Total 235 | 38 109 88 Wait 30 | . . 30 Move 180 | 35 108 37 Hop . | . . . Pick Up . | . . . Fast Attach 4 | 3 1 . Attach . | . . . Detach . | . . . Swap . | . . . Drop . | . . . Fire 21 | . . 21 Melee . | . . . Ram . | . . . Kick . | . . . Crush . | . . . Escape Stasis . | . . . Rewire . | . . . Trap . | . . . Miscellaneous . | . . . Route ------- -11/Scrapyard -10/Materials -10/Mines History --------- Turn | Location | Event 1 | -11/Scrapyard | Upgraded with Utility slot (x1) 2 | -11/Scrapyard | Met Revision 17 7 | -11/Scrapyard | Discovered new exit (range 16) 45 | -11/Scrapyard | Entered Materials 130 | -10/Materials | Met 8R-AWN 166 | -10/Materials | Discovered new exit (range 7) 177 | -10/Materials | Entered Mines 178 | -10/Mines | Assembled infested the area 179 | -10/Mines | Followed 8R-AWN into the Mines 234 | -10/Mines | Attacked by 8R-AWN 245 | -10/Mines | Core integrity fell below 50% 269 | -10/Mines | Core integrity fell below 20% 294 | -10/Mines | Destroyed by 8R-AWN with 8R-AWN's Boregun Last Messages --------------- Penetrated by HV Slug. HV Slug penetrates Earth. Penetrated by HV Slug. HV Slug penetrates Earth. The unstable cave ceiling collapses. Penetrated by HV Slug. HV Slug penetrates Earth. Penetrated by HV Slug. HV Slug penetrates Earth. Penetrated by HV Slug. HV Slug penetrates Earth. Penetrated by HV Slug. HV Slug penetrates Earth. Penetrated by HV Slug. HV Slug penetrates Earth. Penetrated by HV Slug. HV Slug penetrates Earth. K-01 Serf collects debris. Penetrated by HV Slug. [Achievement: Back For More] Map ----- +----------------------------------------------------+ | ???????????????????????????? ??????????# | | ??????????????????????????? ????????? | | ??????????????????????????? #???????? ? | | ?????????????????????????? #?????## #?? | | ??????????????????????????? ???### #??? | | ??????????????????????????????# % #### #??? | | ???????????????????????????????# #??? | | ???????????????????????????????# #??? | | ??????????????????????????????## ### ##??? | | ?????????????????????????????## ??# ###???? | | ????????????????????????? ??## " #?# ##?????? | | ????????????????????????? ??# ### ##??????? | | ????????????????????????? ???# ?# #???????? | | ????????????????????????? ????# ## #??##???? | | ????????????????????????? ?????# # ## ##??? | | ????????????????????????? ??????# #??? | | ????????????????????????? ??????##### #??? | | ????????????????????????# #?????????# ## #??? | | ????????????????????????# #?????????# #?# #??? | | ????????????????????????# #?????????# #??# ##??? | | ??????????????????????### ###???????# #???###???? | | ?????????????????????## ##???#### #?????????? | | ????????????????????## # ##??# ] #?????????? | | ???????????????????## ####=%[ ##?????????? | | ???????????????????# # ## ### ####??????????? | | ???????????????????# @ g #?????????????? | | ???????????????????# g ; ???????? | | ???????????????????### # ## # ;######???????????? | | ????????????????????## ### #????????????????? | | ?????????????????? k = # #??????????????? | | ?????????????? r # ####??????????????? | | ?????????????###### ##### ####?????????????????? | | ?????????????????## ????#####????????????????????? | | ????????????????## ??????????????????????????????? | | ?????????????????#???????????????????????????????? | | ?????????????????????????????????????????????????? | | ?????????????????????????????????????????????????? | | ?????????????????????????????????????????????????? | | ?????????????????????????????????????????????????? | | ?????????????????????????????????????????????????? | | ?????????????????????????????????????????????????? | | ?????????????????????????????????????????????????? | | ?????????????????????????????????????????????????? | | ?????????????????????????????????????????????????? | | ?????????????????????????????????????????????????? | | ?????????????????????????????????????????????????? | | ?????????????????????????????????????????????????? | | ?????????????????????????????????????????????????? | | ?????????????????????????????????????????????????? | | ?????????????????????????????????????????????????? | +----------------------------------------------------+ Best States ------------- Heat Dissipation 35 Energy Generation 10 Energy Capacity 125 Matter Stores 300 Matter Capacity 300 Sight Range 16 Terrain Scan Density 10 Resistance: KI 20 Evasion (%) 40 Item Schematics ----------------- None Robot Schematics ------------------ None Fabricated ------------ Nothing Alien Tech Used ----------------- None Achievements -------------- Back For More Slippery One Challenges ------------ None RPGLIKE | -11 -10 -10 --------- Run | Scr Mat Min Levels Raised . | . . . XP Earned 4058 | 3000 . 1058 XP Spent 2300 | 2300 . . Upgrades 5 | 5 . . Utility Slot 1 | 1 . . KI Resistance % 4 | 4 . . Protomatter Created 52 | . . 52 Protomatter Decayed 150 | . . 150 Game ------ Seed OverloadFissionWings Manual? 0 Play Time 00:05:32 Cumulative 45.1 hours Start 2019.12.23 @ 20:29:18 End 2019.12.23 @ 20:35:50 Sessions 1 Manual Loads 0 Difficulty Rogue Special Mode Winter2019/RPGLIKE Game No. 50 Rogue 50 Adventurer 0 Explorer 0 Win Type - Total 0 Types 0/0/0/0/0/0/0 Lore% 20 Gallery% 25 Achievement% 27 Wizard Run 0 Options --------- ASCII 0 Keyboard 0 Movement Mouse Keybinds 0 Fullscreen 0 Font 32/SmallcapsGlow Map View 76x50 Tactical HUD 0 Map Filters NONE Filters NONE Steam 1 RUN: a9ec4ec9-a32e-4d0d-953f-482eeeba2fc9